fUSD/lending_fUSD_20250519
["ID","MTS","AMOUNT","RATE_DAILY","PERIOD"]
[361571151,1747619433426,-400.0,0.00013698,2]
[361571152,1747619433435,-1420.422068,0.00013698,2]
[361571153,1747619433444,-400.0,0.00013698,2]
[361571154,1747619433454,-411.20078564,0.00013698,2]
[361571155,1747619433464,-400.0,0.00013698,2]
[361571156,1747619433474,-400.0,0.00013698,2]
[361571157,1747619433483,-208.8602809,0.00013698,2]
[361571158,1747619433507,-191.1397191,0.00013698,2]
[361571159,1747619433517,-400.0,0.00013698,2]
[361571160,1747619433526,-400.0,0.00013698,2]
[361571161,1747619433535,-400.0,0.00013698,2]
[361571162,1747619433545,-401.82031294,0.00013698,2]
[361571163,1747619433554,-210.13996796,0.00013698,2]
[361571164,1747619433607,-189.86003204,0.00013698,2]
[361571165,1747619433617,-400.0,0.00013698,2]
[361571166,1747619433626,-400.0,0.00013698,2]
[361571167,1747619433636,-400.0,0.00013698,2]
[361571168,1747619433646,-425.38123644,0.00013698,2]
[361571169,1747619433655,-191.84964227,0.00013698,2]
[361571170,1747619433666,-208.15035773,0.00013698,2]
[361571171,1747619433676,-400.0,0.00013698,2]
[361571172,1747619433685,-400.0,0.00013698,2]
[361571173,1747619433694,-295.66227501,0.00013698,2]
[361571174,1747619433715,-104.33772499,0.00013698,2]
[361571175,1747619433725,-404.93239831,0.00013698,2]
[361571176,1747619433734,-400.0,0.00013698,2]
[361571177,1747619433745,-518.4513883,0.00013698,2]
[361571178,1747619433754,-400.0,0.00013698,2]
[361571179,1747619433763,-400.0,0.00013698,2]
[361571180,1747619433773,-400.6466668,0.00013698,2]
[361571181,1747619433788,-1293.666588,0.00013698,2]
[361571182,1747619433797,-407.87636943,0.00013698,2]
[361571183,1747619433807,-400.72184741,0.00013698,2]
[361571184,1747619433816,-400.0,0.00013698,2]
[361571185,1747619433827,-670.21,0.00013698,2]
[361571186,1747619433837,-400.0,0.00013698,2]
[361571187,1747619433847,-400.0,0.00013698,2]
[361571188,1747619433856,-400.0,0.00013698,2]
[361571189,1747619433867,-400.0,0.00013698,2]
[361571190,1747619433877,-400.0,0.00013698,2]
[361571191,1747619433886,-404.33201007,0.00013698,2]
[361571192,1747619433896,-400.0,0.00013698,2]
[361571193,1747619433905,-400.0,0.00013698,2]
[361571194,1747619433915,-400.0,0.00013698,2]
[361571195,1747619433926,-408.71550751,0.00013698,2]
[361571196,1747619433935,-424.92,0.00013698,2]
[361571197,1747619433945,-413.39531174,0.00013698,2]
[361571198,1747619433954,-907.06,0.00013698,2]
[361571199,1747619433963,-404.03086746,0.00013698,2]
[361571200,1747619433972,-405.16894599,0.00013698,2]
[361571201,1747619433981,-400.0,0.00013698,2]
[361571202,1747619433991,-402.38120864,0.00013698,2]
[361571203,1747619434000,-404.20767293,0.00013698,2]
[361571204,1747619434010,-400.0,0.00013698,2]
[361571205,1747619434019,-400.0,0.00013698,2]
[361571206,1747619434028,-400.0,0.00013698,2]
[361571207,1747619434037,-400.0,0.00013698,2]
[361571208,1747619434047,-405.41507009,0.00013698,2]
[361571209,1747619434056,-400.0,0.00013698,2]
[361571210,1747619434066,-400.0,0.00013698,2]
[361571211,1747619434075,-404.33021322,0.00013698,2]
[361571212,1747619434084,-400.0,0.00013698,2]
[361571213,1747619434094,-400.0,0.00013698,2]
[361571214,1747619434103,-400.0,0.00013698,2]
[361571215,1747619434112,-400.0,0.00013698,2]
[361571216,1747619434122,-402.68390385,0.00013698,2]
[361571217,1747619434131,-400.0,0.00013698,2]
[361571218,1747619434140,-400.0,0.00013698,2]
[361571219,1747619434149,-400.50722039,0.00013698,2]
[361571220,1747619434159,-403.72030086,0.00013698,2]
[361571221,1747619434169,-400.0,0.00013698,2]
[361571222,1747619434178,-400.0,0.00013698,2]
[361571223,1747619434187,-400.0,0.00013698,2]
[361571224,1747619434197,-404.08059536,0.00013698,2]
[361571225,1747619434207,-400.0,0.00013698,2]
[361571226,1747619434217,-400.0,0.00013698,2]
[361571227,1747619434226,-400.0,0.00013698,2]
[361571228,1747619434236,-400.0,0.00013698,2]
[361571229,1747619434245,-400.0,0.00013698,2]
[361571230,1747619434255,-400.0,0.00013698,2]
[361571231,1747619434264,-401.69215774,0.00013698,2]
[361571232,1747619434273,-400.0,0.00013698,2]
[361571233,1747619434282,-507.85872284,0.00013698,2]
[361571234,1747619434292,-340.69118114,0.00013698,2]
[361571235,1747619434302,-402.65544346,0.00013698,2]
[361571236,1747619434311,-403.30945417,0.00013698,2]
[361571237,1747619434321,-400.0,0.00013698,2]
[361571238,1747619434330,-400.0,0.00013698,2]
[361571239,1747619434339,-793.42,0.00013698,2]
[361571240,1747619434349,-400.0,0.00013698,2]
[361571241,1747619434358,-402.27281254,0.00013698,2]
[361571242,1747619434367,-402.23050161,0.00013698,2]
[361571243,1747619434377,-501.40991889,0.00013698,2]
[361571244,1747619434386,-337.0974756,0.00013698,2]
[361571245,1747619434395,-400.0,0.00013698,2]
[361571246,1747619434405,-400.0,0.00013698,2]
[361571247,1747619434415,-451.13477628,0.00013698,2]
[361571248,1747619434424,-450.85116588,0.00013698,2]
[361571249,1747619434433,-406.69444345,0.00013698,2]
[361571250,1747619434442,-400.0,0.00013698,2]
[361571251,1747619434452,-400.0,0.00013698,2]
[361571252,1747619434461,-408.33536411,0.00013698,2]
[361571253,1747619434470,-400.0,0.00013698,2]
[361571254,1747619434480,-506.06967639,0.00013698,2]
[361571255,1747619434490,-402.03227129,0.00013698,2]
[361571256,1747619434499,-401.56940384,0.00013698,2]
[361571257,1747619434509,-400.0,0.00013698,2]
[361571258,1747619434519,-400.0,0.00013698,2]
[361571259,1747619434529,-486.98612926,0.00013698,2]
[361571260,1747619434539,-415.38600996,0.00013698,2]
[361571261,1747619434549,-153.15552564,0.00013698,2]
[361571262,1747619434558,-400.08711956,0.00013698,2]
[361571263,1747619434568,-289.10234453,0.00013698,2]
[361571264,1747619434577,-400.0,0.00013698,2]
[361571265,1747619434589,-400.0,0.00013698,2]
[361571266,1747619434599,-504.20120842,0.00013698,2]
[361571267,1747619434611,-403.53135896,0.00013698,2]
[361571268,1747619434622,-400.0,0.00013698,2]
[361571269,1747619434632,-405.72365315,0.00013698,2]
[361571270,1747619434643,-825.62,0.00013698,2]
[361571271,1747619434653,-400.0,0.00013698,2]
[361571272,1747619434663,-405.33215001,0.00013698,2]
[361571273,1747619434672,-400.0,0.00013698,2]
[361571274,1747619434682,-400.0,0.00013698,2]
[361571275,1747619434691,-404.92814413,0.00013698,2]
[361571276,1747619434701,-224.4653885,0.00013698,2]
[361571277,1747619434711,-400.0,0.00013698,2]
[361571278,1747619434722,-400.0,0.00013698,2]
[361571279,1747619434733,-400.0,0.00013698,2]
[361571280,1747619434742,-400.0,0.00013698,2]
[361571281,1747619434752,-437.44,0.00013698,2]
[361571282,1747619434761,-491.78,0.00013698,2]
[361571283,1747619434771,-402.38126404,0.00013698,2]
[361571284,1747619434783,-400.0,0.00013698,2]
[361571285,1747619434792,-400.0,0.00013698,2]
[361571286,1747619434802,-400.0,0.00013698,2]
[361571287,1747619434811,-405.13643389,0.00013698,2]
[361571288,1747619434819,-404.78472109,0.00013698,2]
[361571289,1747619434829,-400.0,0.00013698,2]
[361571290,1747619434838,-400.0,0.00013698,2]
[361571291,1747619434850,-526.78,0.00013698,2]
[361571292,1747619434861,-400.0,0.00013698,2]
[361571293,1747619434871,-407.51729264,0.00013698,2]
[361571294,1747619434881,-400.0,0.00013698,2]
[361571295,1747619434891,-400.0,0.00013698,2]
[361571296,1747619434900,-409.63114348,0.00013698,2]
[361571297,1747619434911,-629.93,0.00013698,2]
[361571298,1747619434920,-392.87699739,0.00013698,2]
[361571299,1747619434929,-402.16114967,0.00013698,2]
[361571300,1747619434938,-400.0,0.00013698,2]
[361571301,1747619434947,-404.00358579,0.00013698,2]
[361571302,1747619434956,-402.62075258,0.00013698,2]
[361571303,1747619434965,-400.0,0.00013698,2]
[361571304,1747619434974,-400.0,0.00013698,2]
[361571305,1747619434984,-400.0,0.00013698,2]
[361571306,1747619434993,-400.0,0.00013698,2]
[361571307,1747619435002,-402.38793016,0.00013698,2]
[361571308,1747619435011,-938.0,0.00013698,2]
[361571309,1747619435021,-400.0,0.00013698,2]
[361571310,1747619435030,-400.0,0.00013698,2]
[361571311,1747619435039,-471.31,0.00013698,2]
[361571312,1747619435048,-400.0,0.00013698,2]
[361571313,1747619435058,-503.22445634,0.00013698,2]
[361571314,1747619435068,-158.3128735,0.00013698,2]
[361571315,1747619435078,-400.0,0.00013698,2]
[361571316,1747619435087,-1142.22,0.00013698,2]
[361571317,1747619435097,-464.99572018,0.00013698,2]
[361571318,1747619435109,-439.5967795,0.00013698,2]
[361571319,1747619435118,-402.6380777,0.00013698,2]
[361571320,1747619435128,-403.83951269,0.00013698,2]
[361571321,1747619435137,-502.35332645,0.00013698,2]
[361571322,1747619435146,-407.91534568,0.00013698,2]
[361571323,1747619435155,-474.10341601,0.00013698,2]
[361571324,1747619435164,-400.0,0.00013698,2]
[361571325,1747619435173,-400.0,0.00013698,2]
[361571326,1747619435183,-404.36076402,0.00013698,2]
[361571327,1747619435192,-400.0,0.00013698,2]
[361571328,1747619435201,-404.72395443,0.00013698,2]
[361571329,1747619435210,-1763.01,0.00013698,2]
[361571330,1747619435219,-1000.0,0.00013698,2]
[361571331,1747619435229,-400.0,0.00013698,2]
[361571332,1747619435239,-408.51407622,0.00013698,2]
[361571333,1747619435248,-400.0,0.00013698,2]
[361571334,1747619435257,-400.0,0.00013698,2]
[361571335,1747619435267,-400.0,0.00013698,2]
[361571336,1747619435276,-400.0,0.00013698,2]
[361571337,1747619435286,-402.59950095,0.00013698,2]
[361571338,1747619435295,-400.0,0.00013698,2]
[361571339,1747619435305,-400.0,0.00013698,2]
[361571340,1747619435314,-492.73442759,0.00013698,2]
[361571341,1747619435324,-400.0,0.00013698,2]
[361571342,1747619435334,-407.54472485,0.00013698,2]
[361571343,1747619435343,-403.77076615,0.00013698,2]
[361571344,1747619435352,-400.0,0.00013698,2]
[361571345,1747619435362,-405.11093203,0.00013698,2]
[361571346,1747619435570,-732.17,0.00013698,2]
[361571347,1747619435588,-732.17,0.00013698,2]
[361571348,1747619435597,-732.17,0.00013698,2]
[361571349,1747619435607,-400.0,0.00013698,2]
[361571350,1747619435616,-520.77602259,0.00013698,2]
[361571351,1747619435626,-402.42610905,0.00013698,2]
[361571352,1747619435635,-400.0,0.00013698,2]
[361571353,1747619435645,-194.0820683,0.00013698,2]
[361571354,1747619435655,-212.90548913,0.00013698,2]
[361571355,1747619435665,-402.78611238,0.00013698,2]
[361571356,1747619435675,-392.3661982,0.00013698,2]
[361571357,1747619435685,-402.39986021,0.00013698,2]
[361571358,1747619435694,-400.0,0.00013698,2]
[361571359,1747619435704,-400.0,0.00013698,2]
[361571360,1747619435713,-400.0,0.00013698,2]
[361571361,1747619435725,-400.0,0.00013698,2]
[361571362,1747619435734,-1162.22,0.00013698,2]
[361571363,1747619435744,-400.0,0.00013698,2]
[361571364,1747619435753,-578.09,0.00013698,2]
[361571365,1747619435764,-406.1131503,0.00013698,2]
[361571366,1747619435774,-494.90743541,0.00013698,2]
[361571367,1747619435787,-635.14,0.00013698,2]
[361571368,1747619435797,-418.47588099,0.00013698,2]
[361571369,1747619435807,-400.0,0.00013698,2]
[361571370,1747619435816,-1227.39,0.00013698,2]
[361571371,1747619435827,-411.41621201,0.00013698,2]
[361571372,1747619435836,-404.53490686,0.00013698,2]
[361571373,1747619435846,-405.80557945,0.00013698,2]
[361571374,1747619435856,-1121.1,0.00013698,2]
[361571375,1747619435866,-1369.65,0.00013698,2]
[361571376,1747619435876,-402.3,0.00013698,2]
[361571377,1747619435886,-403.8284526,0.00013698,2]
[361571378,1747619435896,-400.0,0.00013698,2]
[361571379,1747619435905,-400.0,0.00013698,2]
[361571380,1747619435915,-400.0,0.00013698,2]
[361571381,1747619435925,-209.47423613,0.00013698,2]
[361571382,1747619435935,-869.67,0.00013698,2]
[361571383,1747619435944,-402.33337786,0.00013698,2]
[361571384,1747619435954,-405.6780092,0.00013698,2]
[361571385,1747619435964,-400.0,0.00013698,2]
[361571386,1747619435975,-403.06147378,0.00013698,2]
[361571387,1747619435984,-400.0,0.00013698,2]
[361571388,1747619435993,-486.08,0.00013698,2]
[361571389,1747619436003,-400.0,0.00013698,2]
[361571390,1747619436012,-400.0,0.00013698,2]
[361571391,1747619436022,-402.30095861,0.00013698,2]
[361571392,1747619436031,-402.73685796,0.00013698,2]
[361571393,1747619436040,-400.82017672,0.00013698,2]
[361571394,1747619436050,-400.0,0.00013698,2]
[361571395,1747619436059,-404.3644115,0.00013698,2]
[361571396,1747619436069,-400.0,0.00013698,2]
[361571397,1747619436078,-616.34,0.00013698,2]
[361571398,1747619436087,-400.0,0.00013698,2]
[361571399,1747619436097,-313.4291198,0.00013698,2]
[361571400,1747619436137,-94.88326142,0.00013698,2]
[361571401,1747619436147,-883.7,0.00013698,2]
[361571402,1747619436157,-404.379873,0.00013698,2]
[361571403,1747619436166,-400.0,0.00013698,2]
[361571404,1747619436175,-400.0,0.00013698,2]
[361571405,1747619436185,-532.32811567,0.00013698,2]
[361571406,1747619436196,-262.40188433,0.00013698,2]
[361571407,1747619436206,-400.56546522,0.00013698,2]
[361571408,1747619436217,-400.0,0.00013698,2]
[361571409,1747619436227,-732.22,0.00013698,2]
[361571410,1747619436236,-459.00645092,0.00013698,2]
[361571411,1747619436246,-401.30680687,0.00013698,2]
[361571412,1747619436256,-400.0,0.00013698,2]
[361571413,1747619436266,-401.39714707,0.00013698,2]
[361571414,1747619436275,-403.87029819,0.00013698,2]
[361571415,1747619436285,-1046.78,0.00013698,2]
[361571416,1747619436295,-404.00429607,0.00013698,2]
[361571417,1747619436304,-400.0,0.00013698,2]
[361571418,1747619436314,-1002.44,0.00013698,2]
[361571419,1747619436325,-406.45474757,0.00013698,2]
[361571420,1747619436334,-400.0,0.00013698,2]
[361571421,1747619436344,-402.69586553,0.00013698,2]
[361571422,1747619436354,-500.0,0.00013698,2]
[361571423,1747619436363,-400.0,0.00013698,2]
[361571424,1747619436373,-400.0,0.00013698,2]
[361571425,1747619436382,-400.0,0.00013698,2]
[361571426,1747619436392,-400.0,0.00013698,2]
[361571427,1747619436401,-400.0,0.00013698,2]
[361571428,1747619436411,-400.0,0.00013698,2]
[361571429,1747619436421,-636.0,0.00013698,2]
[361571430,1747619436431,-402.76146172,0.00013698,2]
[361571431,1747619436440,-400.0,0.00013698,2]
[361571432,1747619436450,-400.84979981,0.00013698,2]
[361571433,1747619436459,-400.0,0.00013698,2]
[361571434,1747619436469,-408.23140729,0.00013698,2]
[361571435,1747619436478,-275.40973267,0.00013698,2]
[361571436,1747619436487,-404.60788128,0.00013698,2]
[361571437,1747619436497,-403.99597454,0.00013698,2]
[361571438,1747619436506,-400.0,0.00013698,2]
[361571439,1747619436516,-917.76,0.00013698,2]
[361571440,1747619436525,-401.03012829,0.00013698,2]
[361571441,1747619436534,-400.0,0.00013698,2]
[361571442,1747619436544,-401.88086856,0.00013698,2]
[361571443,1747619436553,-520.73,0.00013698,2]
[361571444,1747619436563,-423.05003785,0.00013698,2]
[361571445,1747619436573,-405.79928835,0.00013698,2]
[361571446,1747619436583,-641.55,0.00013698,2]
[361571447,1747619436592,-400.0,0.00013698,2]
[361571448,1747619436601,-400.0,0.00013698,2]
[361571449,1747619436611,-405.15109695,0.00013698,2]
[361571450,1747619436620,-400.0,0.00013698,2]
[361571451,1747619436629,-462.28,0.00013698,2]
[361571452,1747619436638,-400.3385464,0.00013698,2]
[361571453,1747619436647,-403.67199199,0.00013698,2]
[361571454,1747619436657,-400.0,0.00013698,2]
[361571455,1747619436666,-404.75087382,0.00013698,2]
[361571456,1747619436675,-404.59027425,0.00013698,2]
[361571457,1747619436684,-402.16826912,0.00013698,2]
[361571458,1747619436694,-400.0,0.00013698,2]
[361571459,1747619436703,-400.0,0.00013698,2]
[361571460,1747619436712,-400.0,0.00013698,2]
[361571461,1747619436721,-505.17106379,0.00013698,2]
[361571462,1747619436730,-400.0,0.00013698,2]
[361571463,1747619436739,-402.23190291,0.00013698,2]
[361571464,1747619436748,-400.0,0.00013698,2]
[361571465,1747619436757,-779.32,0.00013698,2]
[361571466,1747619436766,-400.0,0.00013698,2]
[361571467,1747619436775,-570.57,0.00013698,2]
[361571468,1747619436789,-400.0,0.00013698,2]
[361571469,1747619436798,-401.70011821,0.00013698,2]
[361571470,1747619436807,-264.35677298,0.00013698,2]
[361571471,1747619436819,-402.52317152,0.00013698,2]
[361571472,1747619436829,-295.51143205,0.00013698,2]
[361571473,1747619436839,-401.52957013,0.00013698,2]
[361571474,1747619436848,-1211.37737375,0.00013698,2]
[361571475,1747619436864,-1017.51262625,0.00013698,2]
[361571476,1747619436874,-400.0,0.00013698,2]
[361571477,1747619436883,-410.94604394,0.00013698,2]
[361571478,1747619436892,-400.0,0.00013698,2]
[361571479,1747619436901,-94.25612828,0.00013698,2]
[361571480,1747619436914,-305.74387172,0.00013698,2]
[361571481,1747619436923,-400.0,0.00013698,2]
[361571482,1747619436932,-400.0,0.00013698,2]
[361571483,1747619436942,-531.957303,0.00013698,2]
[361571484,1747619436952,-201.8802588,0.00013698,2]
[361571534,1747619438632,-198.1197412,0.00013698,2]
[361571535,1747619438642,-402.10532004,0.00013698,2]
[361571536,1747619438651,-400.0,0.00013698,2]
[361571537,1747619438661,-404.74975355,0.00013698,2]
[361571538,1747619438670,-407.86250084,0.00013698,2]
[361571539,1747619438680,-400.0,0.00013698,2]
[361571540,1747619438690,-400.0,0.00013698,2]
[361571541,1747619438700,-1293.99,0.00013698,2]
[361571542,1747619438709,-195.35076439,0.00013698,2]
[361571543,1747619438740,-454.08923561,0.00013698,2]
[361571544,1747619438749,-403.5525433,0.00013698,2]
[361571545,1747619438759,-402.97781914,0.00013698,2]
[361571546,1747619438770,-400.0,0.00013698,2]
[361571547,1747619438784,-401.2966865,0.00013698,2]
[361571548,1747619438793,-400.0,0.00013698,2]
[361571549,1747619438803,-782.14,0.00013698,2]
[361571550,1747619438812,-569.87,0.00013698,2]
[361571551,1747619438821,-400.0,0.00013698,2]
[361571552,1747619438830,-400.47410471,0.00013698,2]
[361571553,1747619438840,-407.91254161,0.00013698,2]
[361571554,1747619438851,-400.0,0.00013698,2]
[361571555,1747619438860,-400.0,0.00013698,2]
[361571556,1747619438869,-683.25,0.00013698,2]
[361571557,1747619438879,-166.94483641,0.00013698,2]
[361571558,1747619438891,-464.11516359,0.00013698,2]
[361571559,1747619438900,-400.0,0.00013698,2]
[361571560,1747619438909,-400.0,0.00013698,2]
[361571561,1747619438918,-229.86435432,0.00013698,2]
[361571562,1747619438929,-1098.5499616,0.00013698,2]
[361571563,1747619438945,-701.66400667,0.00013698,2]
[361571586,1747619439695,-1155.00000005,0.00013196,2]
[361571604,1747619439868,-3773.82769019,0.00013196,2]
[361571606,1747619439878,-120.31167741,0.00013698,2]
[361571607,1747619439886,-403.36286513,0.00013698,2]
[361571608,1747619439895,-504.8001522,0.00013698,2]
[361571609,1747619439904,-328.3027101,0.00013698,2]
[361571610,1747619439914,-401.67731885,0.00013698,2]
[361571611,1747619439923,-400.0,0.00013698,2]
[361571612,1747619439932,-400.0,0.00013698,2]
[361571613,1747619439941,-406.4459924,0.00013698,2]
[361571614,1747619439950,-400.0,0.00013698,2]
[361571616,1747619439959,-400.0,0.00013698,2]
[361571617,1747619439968,-402.22530097,0.00013698,2]
[361571618,1747619439977,-400.0,0.00013698,2]
[361571619,1747619439987,-400.0,0.00013698,2]
[361571620,1747619439996,-400.25545853,0.00013698,2]
[361571621,1747619440006,-500.0,0.00013698,2]
[361571622,1747619440015,-500.0,0.00013698,2]
[361571623,1747619440024,-508.62421493,0.00013698,2]
[361571624,1747619440033,-400.0,0.00013698,2]
[361571625,1747619440043,-313.04029477,0.00013698,2]
[361571627,1747619440052,-1241.68,0.00013698,2]
[361571628,1747619440061,-585.42,0.00013698,2]
[361571629,1747619440070,-540.29,0.00013698,2]
[361571630,1747619440079,-410.11518594,0.00013698,2]
[361571631,1747619440088,-400.0,0.00013698,2]
[361571632,1747619440098,-407.06515335,0.00013698,2]
[361571633,1747619440107,-400.0,0.00013698,2]
[361571634,1747619440116,-400.0,0.00013698,2]
[361571635,1747619440125,-671.71,0.00013698,2]
[361571636,1747619440134,-529.81485947,0.00013698,2]
[361571637,1747619440144,-576.82,0.00013698,2]
[361571638,1747619440154,-400.0,0.00013698,2]
[361571639,1747619440163,-400.0,0.00013698,2]
[361571640,1747619440173,-403.48951777,0.00013698,2]
[361571641,1747619440184,-400.0,0.00013698,2]
[361571642,1747619440194,-400.0,0.00013698,2]
[361571643,1747619440204,-404.55081504,0.00013698,2]
[361571644,1747619440215,-400.0,0.00013698,2]
[361571645,1747619440224,-410.26,0.00013698,2]
[361571646,1747619440235,-1254.91,0.00013698,2]
[361571647,1747619440244,-400.0,0.00013698,2]
[361571648,1747619440253,-985.72,0.00013698,2]
[361571649,1747619440262,-3197.63310683,0.00013698,2]
[361571650,1747619440271,-401.61153516,0.00013698,2]
[361571651,1747619440280,-503.08,0.00013698,2]
[361571652,1747619440289,-401.50952533,0.00013698,2]
[361571653,1747619440298,-552.44,0.00013698,2]
[361571654,1747619440308,-400.0,0.00013698,2]
[361571655,1747619440317,-400.0,0.00013698,2]
[361571656,1747619440326,-400.0,0.00013698,2]
[361571657,1747619440334,-1449.11,0.00013698,2]
[361571658,1747619440343,-400.0,0.00013698,2]
[361571659,1747619440352,-400.0,0.00013698,2]
[361571660,1747619440362,-400.0,0.00013698,2]
[361571661,1747619440371,-403.02319837,0.00013698,2]
[361571662,1747619440380,-1065.86,0.00013698,2]
[361571663,1747619440389,-400.0,0.00013698,2]
[361571664,1747619440398,-999.51,0.00013698,2]
[361571665,1747619440407,-400.0,0.00013698,2]
[361571666,1747619440417,-400.31407804,0.00013698,2]
[361571667,1747619440427,-400.0,0.00013698,2]
[361571668,1747619440437,-2200.99,0.00013698,2]
[361571669,1747619440446,-400.0,0.00013698,2]
[361571670,1747619440455,-400.0,0.00013698,2]
[361571671,1747619440465,-401.18692361,0.00013698,2]
[361571672,1747619440474,-404.23925324,0.00013698,2]
[361571673,1747619440483,-505.11,0.00013698,2]
[361571674,1747619440492,-406.5825054,0.00013698,2]
[361571675,1747619440501,-400.0,0.00013698,2]
[361571676,1747619440511,-409.31107606,0.00013698,2]
[361571677,1747619440519,-401.72406809,0.00013698,2]
[361571678,1747619440528,-400.0,0.00013698,2]
[361571679,1747619440538,-400.0,0.00013698,2]
[361571680,1747619440547,-400.0,0.00013698,2]
[361571681,1747619440556,-400.0,0.00013698,2]
[361571682,1747619440565,-498.13,0.00013698,2]
[361571683,1747619440574,-376.93727424,0.00013698,2]
[361571684,1747619440583,-426.34,0.00013698,2]
[361571685,1747619440592,-955.96,0.00013698,2]
[361571686,1747619440601,-402.30283601,0.00013698,2]
[361571687,1747619440611,-400.0,0.00013698,2]
[361571688,1747619440620,-553.07,0.00013698,2]
[361571689,1747619440629,-622.67,0.00013698,2]
[361571690,1747619440638,-404.33802721,0.00013698,2]
[361571691,1747619440647,-639.52,0.00013698,2]
[361571692,1747619440657,-553.57,0.00013698,2]
[361571693,1747619440667,-400.0,0.00013698,2]
[361571694,1747619440676,-400.0,0.00013698,2]
[361571695,1747619440687,-404.55882592,0.00013698,2]
[361571696,1747619440697,-402.6826388,0.00013698,2]
[361571697,1747619440708,-400.0,0.00013698,2]
[361571698,1747619440718,-451.25449603,0.00013698,2]
[361571699,1747619440727,-404.66164181,0.00013698,2]
[361571700,1747619440736,-527.64,0.00013698,2]
[361571701,1747619440745,-863.16,0.00013698,2]
[361571702,1747619440756,-400.0,0.00013698,2]
[361571703,1747619440766,-411.25,0.00013698,2]
[361571704,1747619440775,-405.56233463,0.00013698,2]
[361571705,1747619440788,-400.0,0.00013698,2]
[361571706,1747619440797,-757.58,0.00013698,2]
[361571707,1747619440806,-400.0,0.00013698,2]
[361571708,1747619440815,-400.0,0.00013698,2]
[361571709,1747619440823,-402.26324548,0.00013698,2]
[361571710,1747619440832,-188.91490901,0.00013698,2]
[361571711,1747619440842,-678.02,0.00013698,2]
[361571712,1747619440853,-400.0,0.00013698,2]
[361571713,1747619440862,-1127.31,0.00013698,2]
[361571714,1747619440871,-400.81584776,0.00013698,2]
[361571715,1747619440880,-406.22639634,0.00013698,2]
[361571716,1747619440889,-406.16813922,0.00013698,2]
[361571717,1747619440898,-907.12,0.00013698,2]
[361571718,1747619440908,-1413.62,0.00013698,2]
[361571719,1747619440917,-562.12,0.00013698,2]
[361571720,1747619440926,-400.0,0.00013698,2]
[361571721,1747619440936,-400.0,0.00013698,2]
[361571722,1747619440945,-402.90981501,0.00013698,2]
[361571723,1747619440956,-406.59802123,0.00013698,2]
[361571724,1747619440966,-400.57752208,0.00013698,2]
[361571725,1747619440976,-400.0,0.00013698,2]
[361571726,1747619440986,-400.0,0.00013698,2]
[361571727,1747619440995,-400.0,0.00013698,2]
[361571728,1747619441005,-435.1,0.00013698,2]
[361571729,1747619441014,-400.0,0.00013698,2]
[361571730,1747619441023,-404.72,0.00013698,2]
[361571731,1747619441032,-410.80530954,0.00013698,2]
[361571732,1747619441041,-400.0,0.00013698,2]
[361571733,1747619441050,-937.97,0.00013698,2]
[361571734,1747619441059,-400.0,0.00013698,2]
[361571735,1747619441068,-228.16880741,0.00013698,2]
[361571736,1747619441077,-754.19,0.00013698,2]
[361571737,1747619441086,-403.59745306,0.00013698,2]
[361571738,1747619441095,-400.0,0.00013698,2]
[361571739,1747619441104,-400.0,0.00013698,2]
[361571740,1747619441114,-402.25060091,0.00013698,2]
[361571741,1747619441124,-400.0,0.00013698,2]